[Event "Titled Tuesday Blitz February 14 Early 2023"]
[White "Carnicelli, Valerio"]
[Black "Rian, Kapriaga"]
[WhiteFideId "856185"]
[BlackFideId "7103263"]
[WhiteElo "2370"]
[BlackElo "2089"]
[Result "1-0"]
[Round "04"]
[TimeControl "180+2"]
[Date "2023.02.15"]
[WhiteClock "0:00:27"]
[BlackClock "0:00:06"]

1. e4 {[%clk 0:03:00]}  c6 {[%clk 0:02:59]} 2. Nc3 {[%clk 0:02:59]}  d5 {[%clk 0:02:59]} 3. Nf3 {[%clk 0:03:00]}  Bg4 {[%clk 0:02:58]} 4. h3 {[%clk 0:03:00]}  Bxf3 {[%clk 0:02:58]} 5. Qxf3 {[%clk 0:03:01]}  Nf6 {[%clk 0:02:58]} 6. Be2 {[%clk 0:02:52]}  e6 {[%clk 0:02:58]} 7. O-O {[%clk 0:02:52]}  Nbd7 {[%clk 0:02:58]} 8. d4 {[%clk 0:02:48]}  dxe4 {[%clk 0:02:48]} 9. Nxe4 {[%clk 0:02:49]}  Nxe4 {[%clk 0:02:46]} 10. Qxe4 {[%clk 0:02:50]}  Bd6 {[%clk 0:02:43]} 11. b3 {[%clk 0:02:45]}  O-O {[%clk 0:02:42]} 12. Bd3 {[%clk 0:02:41]}  Nf6 {[%clk 0:02:41]} 13. Qh4 {[%clk 0:02:41]}  h6 {[%clk 0:02:36]} 14. c4 {[%clk 0:02:40]}  a5 {[%clk 0:02:30]} 15. Re1 {[%clk 0:02:34]}  Re8 {[%clk 0:02:27]} 16. Bb2 {[%clk 0:02:32]}  a4 {[%clk 0:02:19]} 17. f4 {[%clk 0:02:17]}  Qc7 {[%clk 0:01:59]} 18. d5 {[%clk 0:02:13]}  Bxf4 {[%clk 0:01:39]} 19. Bxf6 {[%clk 0:02:10]}  gxf6 {[%clk 0:01:38]} 20. dxe6 {[%clk 0:01:55]}  fxe6 {[%clk 0:01:03]} 21. Qxf6 {[%clk 0:01:54]}  Bg5 {[%clk 0:00:52]} 22. Qg6+ {[%clk 0:01:51]}  Qg7 {[%clk 0:00:52]} 23. Qe4 {[%clk 0:01:48]}  axb3 {[%clk 0:00:50]} 24. a4 {[%clk 0:01:20]}  Rad8 {[%clk 0:00:35]} 25. Kh1 {[%clk 0:01:15]}  b2 {[%clk 0:00:31]} 26. Rab1 {[%clk 0:01:14]}  Bc1 {[%clk 0:00:31]} 27. Rf1 {[%clk 0:01:10]}  Rd4 {[%clk 0:00:26]} 28. Qe2 {[%clk 0:01:07]}  e5 {[%clk 0:00:19]} 29. Bf5 {[%clk 0:00:59]}  e4 {[%clk 0:00:17]} 30. Rxb2 {[%clk 0:00:37]}  Bxb2 {[%clk 0:00:16]} 31. Qxb2 {[%clk 0:00:38]}  Rf8 {[%clk 0:00:10]} 32. Be6+ {[%clk 0:00:36]}  Kh8 {[%clk 0:00:10]} 33. Rxf8+ {[%clk 0:00:36]}  Qxf8 {[%clk 0:00:10]} 34. Qxd4+ {[%clk 0:00:37]}  Qg7 {[%clk 0:00:10]} 35. Qxe4 {[%clk 0:00:33]}  Qa1+ {[%clk 0:00:08]} 36. Kh2 {[%clk 0:00:32]}  Qg7 {[%clk 0:00:08]} 37. Qf4 {[%clk 0:00:27]}  b6 {[%clk 0:00:06]} 38. Qb8+ {[%clk 0:00:26]}  Kh7 {[%clk 0:00:06]} 39. Bf5+ {[%clk 0:00:27]} 1-0


[Site "https://www.chess.com"]

[Event "Titled Tuesday Blitz February 14 Early 2023"]
[White "Fan_Of_Chucky"]
[Black "Koellner, Ruben Gideon"]
[BlackFideId "12993093"]
[WhiteElo "2323"]
[BlackElo "2426"]
[Result "0-1"]
[Round "04"]
[TimeControl "180+2"]
[Date "2023.02.15"]
[WhiteClock "0:00:16"]
[BlackClock "0:00:17"]

1. d4 {[%clk 0:03:00]}  d6 {[%clk 0:02:58]} 2. Nf3 {[%clk 0:02:59]}  Nf6 {[%clk 0:02:58]} 3. c4 {[%clk 0:02:59]}  g6 {[%clk 0:02:58]} 4. g3 {[%clk 0:02:59]}  Bf5 {[%clk 0:02:58]} 5. Bg2 {[%clk 0:02:57]}  c6 {[%clk 0:02:58]} 6. O-O {[%clk 0:02:52]}  Bg7 {[%clk 0:02:58]} 7. Nc3 {[%clk 0:02:51]}  Ne4 {[%clk 0:02:58]} 8. Nd2 {[%clk 0:02:30]}  Nxc3 {[%clk 0:02:49]} 9. bxc3 {[%clk 0:02:31]}  O-O {[%clk 0:02:47]} 10. e4 {[%clk 0:02:31]}  Bc8 {[%clk 0:02:44]} 11. Nf3 {[%clk 0:02:17]}  c5 {[%clk 0:02:42]} 12. Be3 {[%clk 0:02:15]}  Nc6 {[%clk 0:02:37]} 13. dxc5 {[%clk 0:02:08]}  dxc5 {[%clk 0:02:38]} 14. Qxd8 {[%clk 0:02:05]}  Rxd8 {[%clk 0:02:39]} 15. Bxc5 {[%clk 0:02:05]}  Bxc3 {[%clk 0:02:36]} 16. Rad1 {[%clk 0:02:05]}  Be6 {[%clk 0:02:36]} 17. Rxd8+ {[%clk 0:01:56]}  Rxd8 {[%clk 0:02:37]} 18. Rc1 {[%clk 0:01:55]}  Bb4 {[%clk 0:02:33]} 19. Bxb4 {[%clk 0:01:41]}  Nxb4 {[%clk 0:02:33]} 20. a3 {[%clk 0:01:37]}  Na6 {[%clk 0:02:23]} 21. Bf1 {[%clk 0:01:29]}  Nc5 {[%clk 0:02:23]} 22. Ng5 {[%clk 0:01:23]}  Bc8 {[%clk 0:02:21]} 23. f3 {[%clk 0:01:22]}  Rd2 {[%clk 0:02:14]} 24. Nh3 {[%clk 0:01:22]}  Bxh3 {[%clk 0:02:12]} 25. Bxh3 {[%clk 0:01:20]}  Rd3 {[%clk 0:02:13]} 26. f4 {[%clk 0:00:59]}  Rxa3 {[%clk 0:02:06]} 27. Rd1 {[%clk 0:00:56]}  Rd3 {[%clk 0:01:56]} 28. Ra1 {[%clk 0:00:50]}  a6 {[%clk 0:01:52]} 29. e5 {[%clk 0:00:47]}  e6 {[%clk 0:01:43]} 30. Rb1 {[%clk 0:00:46]}  Nb3 {[%clk 0:01:32]} 31. Bg2 {[%clk 0:00:43]}  b6 {[%clk 0:01:26]} 32. Bf1 {[%clk 0:00:27]}  Rc3 {[%clk 0:01:25]} 33. c5 {[%clk 0:00:19]}  Nxc5 {[%clk 0:00:53]} 34. Rxb6 {[%clk 0:00:18]}  a5 {[%clk 0:00:53]} 35. Rb8+ {[%clk 0:00:15]}  Kg7 {[%clk 0:00:53]} 36. Ra8 {[%clk 0:00:16]}  a4 {[%clk 0:00:53]} 37. Bb5 {[%clk 0:00:15]}  a3 {[%clk 0:00:53]} 38. Ra7 {[%clk 0:00:10]}  Nd3 {[%clk 0:00:19]} 39. Bxd3 {[%clk 0:00:09]}  Rxd3 {[%clk 0:00:20]} 40. Ra8 {[%clk 0:00:08]}  Rb3 {[%clk 0:00:20]} 41. Kg2 {[%clk 0:00:07]}  Rb2+ {[%clk 0:00:19]} 42. Kh3 {[%clk 0:00:07]}  a2 {[%clk 0:00:19]} 43. Kg4 {[%clk 0:00:04]}  Rxh2 {[%clk 0:00:18]} 44. Kf3 {[%clk 0:00:05]}  h5 {[%clk 0:00:17]} 45. Ke3 {[%clk 0:00:04]}  Rb2 {[%clk 0:00:16]} 46. Kf3 {[%clk 0:00:04]}  g5 {[%clk 0:00:14]} 47. fxg5 {[%clk 0:00:03]}  Kg6 {[%clk 0:00:15]} 48. Kf4 {[%clk 0:00:04]}  Rf2+ {[%clk 0:00:13]} 49. Ke3 {[%clk 0:00:04]}  Rc2 {[%clk 0:00:12]} 50. Kf4 {[%clk 0:00:03]}  Rb2 {[%clk 0:00:12]} 51. Rg8+ {[%clk 0:00:03]}  Kh7 {[%clk 0:00:13]} 52. Ra8 {[%clk 0:00:03]}  Kg7 {[%clk 0:00:13]} 53. Kf3 {[%clk 0:00:02]}  Rc2 {[%clk 0:00:12]} 54. Kf4 {[%clk 0:00:02]}  Rf2+ {[%clk 0:00:11]} 55. Ke3 {[%clk 0:00:03]}  Rc2 {[%clk 0:00:08]} 56. Kf4 {[%clk 0:00:02]}  Kg6 {[%clk 0:00:09]} 57. Rg8+ {[%clk 0:00:02]}  Kh7 {[%clk 0:00:09]} 58. Ra8 {[%clk 0:00:03]}  Rb2 {[%clk 0:00:09]} 59. Ra7 {[%clk 0:00:02]}  Kg6 {[%clk 0:00:09]} 60. Ra8 {[%clk 0:00:02]}  Rb4+ {[%clk 0:00:09]} 61. Kf3 {[%clk 0:00:02]}  Kxg5 {[%clk 0:00:03]} 62. Rxa2 {[%clk 0:00:03]}  Rb5 {[%clk 0:00:03]} 63. Ra7 {[%clk 0:00:02]}  Rxe5 {[%clk 0:00:03]} 64. Rxf7 {[%clk 0:00:01]}  Rf5+ {[%clk 0:00:04]} 65. Rxf5+ {[%clk 0:00:01]}  Kxf5 {[%clk 0:00:05]} 66. Ke3 {[%clk 0:00:02]}  Kg4 {[%clk 0:00:05]} 67. Kf2 {[%clk 0:00:02]}  e5 {[%clk 0:00:05]} 68. Kg2 {[%clk 0:00:03]}  e4 {[%clk 0:00:03]} 69. Kf2 {[%clk 0:00:03]}  e3+ {[%clk 0:00:04]} 70. Kxe3 {[%clk 0:00:04]}  Kxg3 {[%clk 0:00:05]} 71. Ke2 {[%clk 0:00:04]}  Kg2 {[%clk 0:00:06]} 72. Ke3 {[%clk 0:00:04]}  h4 {[%clk 0:00:06]} 73. Kf4 {[%clk 0:00:05]}  h3 {[%clk 0:00:07]} 74. Kg5 {[%clk 0:00:05]}  h2 {[%clk 0:00:08]} 75. Kf5 {[%clk 0:00:06]}  h1=Q {[%clk 0:00:09]} 76. Kf6 {[%clk 0:00:07]}  Qf1+ {[%clk 0:00:10]} 77. Ke5 {[%clk 0:00:08]}  Qf3 {[%clk 0:00:11]} 78. Ke6 {[%clk 0:00:09]}  Qg4+ {[%clk 0:00:11]} 79. Kd5 {[%clk 0:00:10]}  Qg3 {[%clk 0:00:12]} 80. Kc6 {[%clk 0:00:10]}  Qf3+ {[%clk 0:00:13]} 81. Kb5 {[%clk 0:00:11]}  Kf2 {[%clk 0:00:14]} 82. Kc5 {[%clk 0:00:12]}  Qe3+ {[%clk 0:00:15]} 83. Kb5 {[%clk 0:00:12]}  Ke2 {[%clk 0:00:14]} 84. Kc6 {[%clk 0:00:13]}  Qd3 {[%clk 0:00:14]} 85. Kb7 {[%clk 0:00:14]}  Qc4 {[%clk 0:00:14]} 86. Ka7 {[%clk 0:00:14]}  Qb5 {[%clk 0:00:14]} 87. Ka8 {[%clk 0:00:15]}  Kd3 {[%clk 0:00:15]} 88. Ka7 {[%clk 0:00:15]}  Kc4 {[%clk 0:00:16]} 89. Ka8 {[%clk 0:00:16]}  Kc5 {[%clk 0:00:17]} 0-1


[Site "https://www.chess.com"]

[Event "Titled Tuesday Blitz February 14 Early 2023"]
[White "AidenRchess"]
[Black "Yuan, Qingyu"]
[BlackFideId "8609772"]
[WhiteElo "2517"]
[BlackElo "2373"]
[Result "1/2-1/2"]
[Round "04"]
[TimeControl "180+2"]
[Date "2023.02.15"]
[WhiteClock "0:00:29"]
[BlackClock "0:00:25"]

1. e4 {[%clk 0:03:00]}  e5 {[%clk 0:02:54]} 2. Nf3 {[%clk 0:03:00]}  Nc6 {[%clk 0:02:54]} 3. Bb5 {[%clk 0:03:00]}  Nf6 {[%clk 0:02:55]} 4. O-O {[%clk 0:02:58]}  Nxe4 {[%clk 0:02:55]} 5. d4 {[%clk 0:02:58]}  Nd6 {[%clk 0:02:55]} 6. dxe5 {[%clk 0:02:57]}  Nxb5 {[%clk 0:02:48]} 7. a4 {[%clk 0:02:57]}  Nbd4 {[%clk 0:02:48]} 8. Nxd4 {[%clk 0:02:57]}  d5 {[%clk 0:02:43]} 9. exd6 {[%clk 0:02:57]}  Bxd6 {[%clk 0:02:43]} 10. Re1+ {[%clk 0:02:50]}  Be7 {[%clk 0:02:30]} 11. Bg5 {[%clk 0:01:59]}  f6 {[%clk 0:01:33]} 12. Nxc6 {[%clk 0:01:04]}  Qxd1 {[%clk 0:01:24]} 13. Rxd1 {[%clk 0:01:03]}  fxg5 {[%clk 0:01:16]} 14. Nxe7 {[%clk 0:01:02]}  Kxe7 {[%clk 0:01:16]} 15. Nc3 {[%clk 0:01:02]}  c6 {[%clk 0:01:12]} 16. Re1+ {[%clk 0:01:01]}  Kf7 {[%clk 0:00:59]} 17. Ne4 {[%clk 0:00:58]}  h6 {[%clk 0:00:59]} 18. Rad1 {[%clk 0:00:55]}  Kg6 {[%clk 0:00:31]} 19. Rd6+ {[%clk 0:00:51]}  Kf7 {[%clk 0:00:25]} 20. Rd3 {[%clk 0:00:46]}  Kg6 {[%clk 0:00:24]} 21. Rd6+ {[%clk 0:00:29]}  Kf7 {[%clk 0:00:24]} 22. Rd3 {[%clk 0:00:29]}  Kg6 {[%clk 0:00:25]} 23. Rd6+ {[%clk 0:00:29]} 1/2-1/2


[Site "https://www.chess.com"]

[Event "Titled Tuesday Blitz February 14 Early 2023"]
[White "Robledo, Cristian"]
[Black "Bilych, Olexiy"]
[WhiteFideId "133450"]
[BlackFideId "14156504"]
[WhiteElo "2270"]
[BlackElo "2441"]
[Result "0-1"]
[Round "04"]
[TimeControl "180+2"]
[Date "2023.02.15"]
[WhiteClock "0:00:02"]
[BlackClock "0:00:26"]

1. d4 {[%clk 0:03:00]}  Nf6 {[%clk 0:02:57]} 2. Bg5 {[%clk 0:03:00]}  d5 {[%clk 0:02:54]} 3. Bxf6 {[%clk 0:02:58]}  exf6 {[%clk 0:02:55]} 4. e3 {[%clk 0:02:59]}  c6 {[%clk 0:02:49]} 5. c4 {[%clk 0:02:58]}  dxc4 {[%clk 0:02:47]} 6. Bxc4 {[%clk 0:02:59]}  Nd7 {[%clk 0:02:47]} 7. Nc3 {[%clk 0:02:59]}  Bd6 {[%clk 0:02:45]} 8. Nf3 {[%clk 0:03:00]}  O-O {[%clk 0:02:45]} 9. Qc2 {[%clk 0:03:00]}  g6 {[%clk 0:02:43]} 10. h4 {[%clk 0:02:58]}  f5 {[%clk 0:02:43]} 11. h5 {[%clk 0:02:57]}  Nf6 {[%clk 0:02:40]} 12. hxg6 {[%clk 0:02:57]}  hxg6 {[%clk 0:02:41]} 13. O-O-O {[%clk 0:02:57]}  b5 {[%clk 0:02:37]} 14. Bb3 {[%clk 0:02:48]}  a5 {[%clk 0:02:37]} 15. a4 {[%clk 0:02:47]}  b4 {[%clk 0:02:34]} 16. Ne2 {[%clk 0:02:37]}  Ne4 {[%clk 0:02:34]} 17. Nf4 {[%clk 0:02:34]}  Kg7 {[%clk 0:02:18]} 18. Ne5 {[%clk 0:02:21]}  Bxe5 {[%clk 0:01:46]} 19. dxe5 {[%clk 0:02:22]}  Qe7 {[%clk 0:01:46]} 20. Rh2 {[%clk 0:01:41]}  Qxe5 {[%clk 0:01:19]} 21. Rdh1 {[%clk 0:01:39]}  Nf6 {[%clk 0:01:18]} 22. Kb1 {[%clk 0:01:24]}  c5 {[%clk 0:01:01]} 23. Ka2 {[%clk 0:01:16]}  Ba6 {[%clk 0:00:48]} 24. Bc4 {[%clk 0:00:43]}  Bb7 {[%clk 0:00:46]} 25. Nd3 {[%clk 0:00:28]}  Qe7 {[%clk 0:00:45]} 26. b3 {[%clk 0:00:24]}  Rad8 {[%clk 0:00:44]} 27. Qb2 {[%clk 0:00:23]}  Rh8 {[%clk 0:00:41]} 28. Rxh8 {[%clk 0:00:19]}  Rxh8 {[%clk 0:00:42]} 29. Rxh8 {[%clk 0:00:19]}  Kxh8 {[%clk 0:00:43]} 30. f3 {[%clk 0:00:14]}  Kg7 {[%clk 0:00:42]} 31. g4 {[%clk 0:00:13]}  fxg4 {[%clk 0:00:37]} 32. fxg4 {[%clk 0:00:14]}  Qxe3 {[%clk 0:00:37]} 33. g5 {[%clk 0:00:12]}  Qxg5 {[%clk 0:00:37]} 34. Qf2 {[%clk 0:00:12]}  Ne4 {[%clk 0:00:34]} 35. Qxf7+ {[%clk 0:00:05]}  Kh6 {[%clk 0:00:31]} 36. Qf8+ {[%clk 0:00:03]}  Kh5 {[%clk 0:00:31]} 37. Qh8+ {[%clk 0:00:02]}  Kg4 {[%clk 0:00:26]} 0-1


[Site "https://www.chess.com"]

[Event "Titled Tuesday Blitz February 14 Early 2023"]
[White "AyMitecK"]
[Black "Erdogdu, Mert"]
[BlackFideId "6301495"]
[WhiteElo "2484"]
[BlackElo "2413"]
[Result "0-1"]
[Round "04"]
[TimeControl "180+2"]
[Date "2023.02.15"]
[WhiteClock "0:00:12"]
[BlackClock "0:00:16"]

1. e4 {[%clk 0:03:00]}  c5 {[%clk 0:02:59]} 2. Nf3 {[%clk 0:03:00]}  d6 {[%clk 0:02:58]} 3. Bb5+ {[%clk 0:03:00]}  Nc6 {[%clk 0:02:57]} 4. O-O {[%clk 0:03:00]}  Bd7 {[%clk 0:02:58]} 5. Re1 {[%clk 0:03:00]}  Nf6 {[%clk 0:02:58]} 6. c3 {[%clk 0:03:00]}  a6 {[%clk 0:02:59]} 7. Bf1 {[%clk 0:02:55]}  Bg4 {[%clk 0:02:59]} 8. h3 {[%clk 0:02:56]}  Bxf3 {[%clk 0:02:58]} 9. Qxf3 {[%clk 0:02:57]}  e6 {[%clk 0:02:58]} 10. d3 {[%clk 0:02:57]}  Be7 {[%clk 0:02:58]} 11. Bf4 {[%clk 0:02:56]}  O-O {[%clk 0:02:58]} 12. Nd2 {[%clk 0:02:56]}  d5 {[%clk 0:02:57]} 13. e5 {[%clk 0:02:55]}  Nd7 {[%clk 0:02:58]} 14. g4 {[%clk 0:02:50]}  Bg5 {[%clk 0:02:51]} 15. Qe3 {[%clk 0:02:32]}  d4 {[%clk 0:02:18]} 16. cxd4 {[%clk 0:02:27]}  cxd4 {[%clk 0:02:19]} 17. Qg3 {[%clk 0:02:26]}  Rc8 {[%clk 0:01:47]} 18. Bxg5 {[%clk 0:02:19]}  Qxg5 {[%clk 0:01:48]} 19. f4 {[%clk 0:02:19]}  Qe7 {[%clk 0:01:48]} 20. Ne4 {[%clk 0:02:12]}  Nb4 {[%clk 0:01:47]} 21. Nd6 {[%clk 0:02:04]}  Rc2 {[%clk 0:01:38]} 22. a3 {[%clk 0:01:59]}  Nd5 {[%clk 0:01:37]} 23. Re2 {[%clk 0:01:57]}  Rxe2 {[%clk 0:01:32]} 24. Bxe2 {[%clk 0:01:57]}  g5 {[%clk 0:01:31]} 25. f5 {[%clk 0:01:43]}  Nf4 {[%clk 0:01:28]} 26. Bf1 {[%clk 0:01:39]}  Nxe5 {[%clk 0:01:28]} 27. Ne4 {[%clk 0:01:30]}  exf5 {[%clk 0:01:24]} 28. gxf5 {[%clk 0:01:31]}  f6 {[%clk 0:01:23]} 29. h4 {[%clk 0:01:26]}  h6 {[%clk 0:01:22]} 30. hxg5 {[%clk 0:01:26]}  hxg5 {[%clk 0:01:22]} 31. Re1 {[%clk 0:01:24]}  Qg7 {[%clk 0:01:14]} 32. Nc5 {[%clk 0:01:15]}  Re8 {[%clk 0:01:03]} 33. Bg2 {[%clk 0:01:08]}  b6 {[%clk 0:00:55]} 34. Ne6 {[%clk 0:01:04]}  Nxe6 {[%clk 0:00:51]} 35. fxe6 {[%clk 0:01:05]}  Qe7 {[%clk 0:00:46]} 36. Bd5 {[%clk 0:00:54]}  Kg7 {[%clk 0:00:46]} 37. b4 {[%clk 0:00:42]}  Qd6 {[%clk 0:00:43]} 38. Bb3 {[%clk 0:00:37]}  Rh8 {[%clk 0:00:42]} 39. Re4 {[%clk 0:00:34]}  Rc8 {[%clk 0:00:35]} 40. Qf2 {[%clk 0:00:20]}  Rc3 {[%clk 0:00:33]} 41. Rxd4 {[%clk 0:00:20]}  Qxd4 {[%clk 0:00:32]} 42. e7 {[%clk 0:00:19]}  Qg4+ {[%clk 0:00:28]} 43. Kh2 {[%clk 0:00:17]}  Qh5+ {[%clk 0:00:18]} 44. Kg2 {[%clk 0:00:16]}  Rxd3 {[%clk 0:00:16]} 45. Bc2 {[%clk 0:00:12]}  Qh3+ {[%clk 0:00:16]} 46. Kg1 {[%clk 0:00:12]}  Rg3+ {[%clk 0:00:16]} 47. Qxg3 {[%clk 0:00:12]}  Qxg3+ {[%clk 0:00:17]} 48. Kf1 {[%clk 0:00:13]}  Kf7 {[%clk 0:00:16]} 49. Bg6+ {[%clk 0:00:12]} 0-1


[Site "https://www.chess.com"]

[Event "Titled Tuesday Blitz February 14 Early 2023"]
[White "Devaev, Alexander"]
[Black "Starozhilov, Leonid"]
[WhiteFideId "4169395"]
[BlackFideId "14106752"]
[WhiteElo "2325"]
[BlackElo "2313"]
[Result "0-1"]
[Round "04"]
[TimeControl "180+2"]
[Date "2023.02.15"]
[WhiteClock "0:00:03"]
[BlackClock "0:00:05"]

1. d4 {[%clk 0:02:50]}  Nf6 {[%clk 0:02:59]} 2. c4 {[%clk 0:02:49]}  g6 {[%clk 0:02:58]} 3. Nc3 {[%clk 0:02:49]}  Bg7 {[%clk 0:02:59]} 4. e4 {[%clk 0:02:50]}  d6 {[%clk 0:02:59]} 5. Nf3 {[%clk 0:02:50]}  Bg4 {[%clk 0:02:59]} 6. Be2 {[%clk 0:02:48]}  O-O {[%clk 0:02:59]} 7. Ng1 {[%clk 0:02:49]}  Bd7 {[%clk 0:02:58]} 8. h3 {[%clk 0:02:48]}  a6 {[%clk 0:02:58]} 9. Qc2 {[%clk 0:02:38]}  Nc6 {[%clk 0:02:54]} 10. Nf3 {[%clk 0:02:36]}  e5 {[%clk 0:02:54]} 11. d5 {[%clk 0:02:29]}  Nd4 {[%clk 0:02:52]} 12. Qd1 {[%clk 0:02:29]}  c5 {[%clk 0:02:48]} 13. dxc6 {[%clk 0:02:28]}  bxc6 {[%clk 0:02:48]} 14. O-O {[%clk 0:02:12]}  c5 {[%clk 0:02:45]} 15. Be3 {[%clk 0:02:09]}  Rb8 {[%clk 0:02:40]} 16. b3 {[%clk 0:02:08]}  a5 {[%clk 0:02:38]} 17. Rb1 {[%clk 0:01:53]}  Bc6 {[%clk 0:02:26]} 18. Bd3 {[%clk 0:01:44]}  Nh5 {[%clk 0:02:18]} 19. Nd5 {[%clk 0:01:40]}  Bxd5 {[%clk 0:02:14]} 20. cxd5 {[%clk 0:01:39]}  Qb6 {[%clk 0:02:01]} 21. Nxd4 {[%clk 0:01:31]}  cxd4 {[%clk 0:01:53]} 22. Bd2 {[%clk 0:01:30]}  Rfc8 {[%clk 0:01:53]} 23. g3 {[%clk 0:01:16]}  Nf6 {[%clk 0:01:51]} 24. Qe1 {[%clk 0:01:11]}  Ra8 {[%clk 0:01:50]} 25. a4 {[%clk 0:00:57]}  Nd7 {[%clk 0:01:47]} 26. b4 {[%clk 0:00:58]}  axb4 {[%clk 0:01:45]} 27. Rxb4 {[%clk 0:00:32]}  Qa7 {[%clk 0:01:43]} 28. Bb5 {[%clk 0:00:32]}  Nc5 {[%clk 0:01:41]} 29. Qb1 {[%clk 0:00:32]}  Rab8 {[%clk 0:01:32]} 30. Kg2 {[%clk 0:00:31]}  Bf6 {[%clk 0:01:32]} 31. Rc1 {[%clk 0:00:20]}  Bd8 {[%clk 0:01:32]} 32. Rbc4 {[%clk 0:00:16]}  Ba5 {[%clk 0:01:30]} 33. Bg5 {[%clk 0:00:14]}  Kg7 {[%clk 0:01:29]} 34. Rd1 {[%clk 0:00:10]}  Bc3 {[%clk 0:01:29]} 35. Qc1 {[%clk 0:00:07]}  f6 {[%clk 0:01:29]} 36. Bh6+ {[%clk 0:00:07]}  Kf7 {[%clk 0:01:29]} 37. h4 {[%clk 0:00:07]}  Nxe4 {[%clk 0:01:10]} 38. Rxc8 {[%clk 0:00:07]}  Rxc8 {[%clk 0:01:10]} 39. Bc6 {[%clk 0:00:07]}  Rb8 {[%clk 0:01:05]} 40. Qc2 {[%clk 0:00:08]}  f5 {[%clk 0:00:58]} 41. Bc1 {[%clk 0:00:06]}  Qb6 {[%clk 0:00:53]} 42. h5 {[%clk 0:00:06]}  Qb3 {[%clk 0:00:39]} 43. Qe2 {[%clk 0:00:06]}  Kg7 {[%clk 0:00:25]} 44. Rh1 {[%clk 0:00:06]}  d3 {[%clk 0:00:15]} 45. Qxd3 {[%clk 0:00:05]}  Bd4 {[%clk 0:00:15]} 46. Qe2 {[%clk 0:00:05]}  Nc3 {[%clk 0:00:10]} 47. Qf3 {[%clk 0:00:04]}  Ne4 {[%clk 0:00:08]} 48. h6+ {[%clk 0:00:04]}  Kf7 {[%clk 0:00:08]} 49. Qe2 {[%clk 0:00:03]}  Nf6 {[%clk 0:00:05]} 50. Rd1 {[%clk 0:00:02]}  Qb6 {[%clk 0:00:05]} 51. Be3 {[%clk 0:00:02]}  Bxe3 {[%clk 0:00:05]} 52. Qxe3 {[%clk 0:00:02]}  Qxe3 {[%clk 0:00:05]} 53. fxe3 {[%clk 0:00:03]}  Rb2+ {[%clk 0:00:06]} 54. Kf1 {[%clk 0:00:02]}  Ra2 {[%clk 0:00:07]} 55. Rb1 {[%clk 0:00:01]}  Ne4 {[%clk 0:00:07]} 56. Rb7+ {[%clk 0:00:02]}  Kf6 {[%clk 0:00:08]} 57. Rxh7 {[%clk 0:00:02]}  Nxg3+ {[%clk 0:00:08]} 58. Ke1 {[%clk 0:00:03]}  f4 {[%clk 0:00:06]} 59. exf4 {[%clk 0:00:03]}  exf4 {[%clk 0:00:07]} 60. Rh8 {[%clk 0:00:04]}  f3 {[%clk 0:00:05]} 61. Rf8+ {[%clk 0:00:04]}  Kg5 {[%clk 0:00:05]} 62. Rxf3 {[%clk 0:00:03]}  Nf5 {[%clk 0:00:06]} 63. h7 {[%clk 0:00:03]}  Rh2 {[%clk 0:00:06]} 64. Bd7 {[%clk 0:00:03]}  Rh1+ {[%clk 0:00:04]} 65. Kd2 {[%clk 0:00:03]}  Rh2+ {[%clk 0:00:04]} 66. Kc3 {[%clk 0:00:03]}  Rxh7 {[%clk 0:00:05]} 67. Bxf5 {[%clk 0:00:02]}  gxf5 {[%clk 0:00:06]} 68. Kd4 {[%clk 0:00:03]}  Kg4 {[%clk 0:00:06]} 69. Rf1 {[%clk 0:00:02]}  Ra7 {[%clk 0:00:05]} 70. Ra1 {[%clk 0:00:02]}  f4 {[%clk 0:00:04]} 71. a5 {[%clk 0:00:02]}  f3 {[%clk 0:00:05]} 72. a6 {[%clk 0:00:03]}  f2 {[%clk 0:00:05]} 73. Ke3 {[%clk 0:00:03]}  Kg3 {[%clk 0:00:05]} 0-1


[Site "https://www.chess.com"]

[Event "Titled Tuesday Blitz February 14 Early 2023"]
[White "Panesar Vedant"]
[Black "Sowul, Bartosz"]
[WhiteFideId "35033018"]
[BlackFideId "1137590"]
[WhiteElo "2387"]
[BlackElo "2269"]
[Result "1/2-1/2"]
[Round "04"]
[TimeControl "180+2"]
[Date "2023.02.15"]
[WhiteClock "0:00:17"]
[BlackClock "0:00:19"]

1. Nf3 {[%clk 0:02:53]}  c5 {[%clk 0:02:59]} 2. e4 {[%clk 0:02:52]}  d6 {[%clk 0:02:59]} 3. d4 {[%clk 0:02:51]}  cxd4 {[%clk 0:03:00]} 4. Nxd4 {[%clk 0:02:52]}  Nf6 {[%clk 0:03:00]} 5. Nc3 {[%clk 0:02:52]}  Nc6 {[%clk 0:03:00]} 6. Bg5 {[%clk 0:02:49]}  g6 {[%clk 0:03:01]} 7. Bxf6 {[%clk 0:02:48]}  exf6 {[%clk 0:03:02]} 8. Bc4 {[%clk 0:02:47]}  Bg7 {[%clk 0:03:02]} 9. Nde2 {[%clk 0:02:48]}  O-O {[%clk 0:02:57]} 10. Ng3 {[%clk 0:02:46]}  h5 {[%clk 0:02:56]} 11. O-O {[%clk 0:02:40]}  h4 {[%clk 0:02:54]} 12. Nge2 {[%clk 0:02:38]}  f5 {[%clk 0:02:54]} 13. Rb1 {[%clk 0:02:34]}  fxe4 {[%clk 0:02:49]} 14. Nxe4 {[%clk 0:02:34]}  d5 {[%clk 0:02:49]} 15. Bxd5 {[%clk 0:02:29]}  Nb4 {[%clk 0:02:45]} 16. Bb3 {[%clk 0:02:19]}  Bf5 {[%clk 0:02:42]} 17. Nd6 {[%clk 0:02:16]}  Bxc2 {[%clk 0:02:31]} 18. Bxc2 {[%clk 0:01:52]}  Nxc2 {[%clk 0:02:30]} 19. Nxb7 {[%clk 0:01:33]}  Qc7 {[%clk 0:02:24]} 20. Rc1 {[%clk 0:01:23]}  Bxb2 {[%clk 0:01:35]} 21. Qxc2 {[%clk 0:01:04]}  Qxb7 {[%clk 0:01:34]} 22. Rb1 {[%clk 0:01:04]}  Rab8 {[%clk 0:01:34]} 23. Nf4 {[%clk 0:00:49]}  Rfc8 {[%clk 0:01:29]} 24. Qe2 {[%clk 0:00:41]}  Re8 {[%clk 0:00:33]} 25. Qc2 {[%clk 0:00:40]}  Qe4 {[%clk 0:00:25]} 26. Qxe4 {[%clk 0:00:27]}  Rxe4 {[%clk 0:00:26]} 27. Nd3 {[%clk 0:00:16]}  Be5 {[%clk 0:00:23]} 28. Nxe5 {[%clk 0:00:11]}  Rxb1 {[%clk 0:00:23]} 29. Rxb1 {[%clk 0:00:12]}  Rxe5 {[%clk 0:00:23]} 30. Kf1 {[%clk 0:00:12]}  Kg7 {[%clk 0:00:22]} 31. g3 {[%clk 0:00:11]}  Ra5 {[%clk 0:00:18]} 32. Rb2 {[%clk 0:00:11]}  Ra4 {[%clk 0:00:18]} 33. Kg2 {[%clk 0:00:11]}  g5 {[%clk 0:00:18]} 34. h3 {[%clk 0:00:09]}  Kg6 {[%clk 0:00:18]} 35. Kf3 {[%clk 0:00:10]}  hxg3 {[%clk 0:00:17]} 36. fxg3 {[%clk 0:00:10]}  Ra3+ {[%clk 0:00:17]} 37. Kg2 {[%clk 0:00:10]}  f5 {[%clk 0:00:18]} 38. Rc2 {[%clk 0:00:10]}  f4 {[%clk 0:00:18]} 39. gxf4 {[%clk 0:00:11]}  gxf4 {[%clk 0:00:18]} 40. Rb2 {[%clk 0:00:10]}  Kg5 {[%clk 0:00:18]} 41. Rc2 {[%clk 0:00:11]}  Kh4 {[%clk 0:00:18]} 42. Rf2 {[%clk 0:00:10]}  Rg3+ {[%clk 0:00:18]} 43. Kf1 {[%clk 0:00:10]}  Kg5 {[%clk 0:00:18]} 44. Rh2 {[%clk 0:00:08]}  Kh4 {[%clk 0:00:14]} 45. Kf2 {[%clk 0:00:08]}  Rxh3 {[%clk 0:00:14]} 46. Rxh3+ {[%clk 0:00:08]}  Kxh3 {[%clk 0:00:14]} 47. Kf3 {[%clk 0:00:09]}  Kh4 {[%clk 0:00:13]} 48. Kxf4 {[%clk 0:00:09]}  a5 {[%clk 0:00:13]} 49. a4 {[%clk 0:00:09]}  Kh5 {[%clk 0:00:13]} 50. Kf5 {[%clk 0:00:10]}  Kh6 {[%clk 0:00:13]} 51. Kf6 {[%clk 0:00:10]}  Kh7 {[%clk 0:00:14]} 52. Kf7 {[%clk 0:00:10]}  Kh8 {[%clk 0:00:14]} 53. Ke6 {[%clk 0:00:10]}  Kg7 {[%clk 0:00:15]} 54. Kd6 {[%clk 0:00:11]}  Kf7 {[%clk 0:00:15]} 55. Kc5 {[%clk 0:00:12]}  Ke7 {[%clk 0:00:15]} 56. Kb5 {[%clk 0:00:13]}  Kd7 {[%clk 0:00:16]} 57. Kxa5 {[%clk 0:00:14]}  Kc7 {[%clk 0:00:16]} 58. Ka6 {[%clk 0:00:14]}  Kb8 {[%clk 0:00:17]} 59. Kb6 {[%clk 0:00:15]}  Ka8 {[%clk 0:00:17]} 60. a5 {[%clk 0:00:15]}  Kb8 {[%clk 0:00:18]} 61. a6 {[%clk 0:00:16]}  Ka8 {[%clk 0:00:19]} 62. a7 {[%clk 0:00:17]} 1/2-1/2


[Site "https://www.chess.com"]